bitfinex/quotes_BTCUSD_20240921
["timestamp","ask_amount","ask_price","bid_price","bid_amount"]
[1726910998540,0.158227,63200.0,63198.0,0.00704642]
[1726910998960,0.162227,63200.0,63198.0,0.00704642]
[1726910999186,0.168227,63200.0,63198.0,0.00804642]
[1726911002100,0.01,63200.0,63198.0,0.00804642]
[1726911002334,0.01,63200.0,63198.0,0.16627742]
[1726911002555,0.01,63200.0,63198.0,0.16627842]
[1726911002824,0.01,63200.0,63199.0,0.091]
[1726911003520,0.01,63200.0,63199.0,0.24923]
[1726911003972,0.004,63200.0,63199.0,0.24923]
[1726911004474,0.008,63200.0,63199.0,0.25023]
[1726911004688,0.008,63200.0,63199.0,0.092]
[1726911005665,0.159047,63202.0,63199.0,0.091]
[1726911006125,0.158225,63201.0,63199.0,0.091]
[1726911006354,0.004,63200.0,63199.0,0.091]
[1726911006796,0.158225,63201.0,63198.0,0.16527742]
[1726911008645,0.000825,63202.0,63198.0,0.16527742]
[1726911008854,0.159049,63202.0,63199.0,0.001]
[1726911009118,0.158226,63201.0,63199.0,0.001]
[1726911009569,0.159226,63201.0,63199.0,0.001]
[1726911010046,0.158226,63201.0,63198.0,0.16527742]
[1726911011209,0.000825,63202.0,63198.0,0.16527742]
[1726911011427,0.159048,63202.0,63198.0,0.16527742]
[1726911011627,0.20647681,63202.0,63198.0,0.16527742]
[1726911012119,0.001,63201.0,63198.0,0.16527742]
[1726911012339,0.04742881,63201.0,63198.0,0.16527742]
[1726911012555,0.20647681,63202.0,63198.0,0.16527742]
[1726911012772,0.20847681,63202.0,63198.0,0.16527742]
[1726911013013,0.04742881,63201.0,63198.0,0.16527742]
[1726911013696,0.159225,63201.0,63198.0,0.16527742]
[1726911013926,0.20565381,63201.0,63198.0,0.16527742]
[1726911014365,0.20565381,63201.0,63198.0,0.16692742]
[1726911014813,0.04742881,63201.0,63198.0,0.16692742]
[1726911015058,0.20647681,63202.0,63198.0,0.16692742]
[1726911015288,0.20847681,63202.0,63198.0,0.16692742]
[1726911015549,0.04742881,63201.0,63198.0,0.16692742]
[1726911016223,0.04751114,63201.0,63198.0,0.16692742]
[1726911016439,0.20755914,63202.0,63198.0,0.16692742]
[1726911016682,0.001,63201.0,63198.0,0.16692742]
[1726911016899,0.001,63201.0,63199.0,0.24923]
[1726911017348,0.001,63201.0,63199.0,0.091]
[1726911017576,0.001,63201.0,63200.0,0.158227]
[1726911017790,0.001,63201.0,63200.0,0.00704387]
[1726911018221,0.000825,63202.0,63200.0,0.00704387]
[1726911018650,0.002825,63202.0,63200.0,0.00704387]
[1726911018869,0.000825,63202.0,63200.0,0.00704387]
[1726911019348,0.001,63201.0,63200.0,0.00704387]
[1726911019571,0.000825,63202.0,63200.0,0.00704387]
[1726911020065,0.002825,63202.0,63200.0,0.00704387]
[1726911021186,0.003825,63202.0,63200.0,0.00704387]
[1726911023943,0.162048,63202.0,63200.0,0.00704387]
[1726911024407,0.003825,63202.0,63200.0,0.16526987]
[1726911024634,0.003825,63202.0,63200.0,0.00704387]
[1726911026419,0.05032839,63202.0,63200.0,0.00704387]
[1726911026876,0.002825,63202.0,63200.0,0.00704387]
[1726911027792,0.000825,63202.0,63200.0,0.00704387]
[1726911028271,0.002825,63202.0,63200.0,0.00704387]
[1726911028719,0.001825,63202.0,63200.0,0.00704387]
[1726911031876,0.001825,63202.0,63201.0,0.158225]
[1726911032342,0.001825,63202.0,63201.0,0.16526793]
[1726911032564,0.001825,63202.0,63201.0,0.00704293]
[1726911033012,0.000825,63202.0,63200.0,0.158227]
[1726911033232,0.000825,63202.0,63201.0,0.16527114]
[1726911033463,0.001825,63202.0,63201.0,0.16527114]
[1726911033920,0.001825,63202.0,63201.0,0.00704614]
[1726911034377,0.001825,63202.0,63201.0,0.158225]
[1726911034595,0.001825,63202.0,63201.0,0.16527114]
[1726911037798,0.001825,63202.0,63201.0,0.16692114]
[1726911038682,0.001825,63202.0,63201.0,0.57877114]
[1726911045689,0.001825,63202.0,63201.0,0.89522114]
[1726911047073,0.001825,63202.0,63201.0,0.57877114]
[1726911056862,0.000825,63202.0,63201.0,0.57877114]
[1726911057096,0.000825,63202.0,63201.0,0.58177114]
[1726911058333,0.000825,63202.0,63201.0,0.26532114]
[1726911058846,0.000825,63202.0,63201.0,0.10709614]
[1726911059103,0.000825,63202.0,63201.0,0.26532114]
[1726911060503,0.000825,63202.0,63201.0,0.58177114]
[1726911061664,0.000825,63202.0,63201.0,0.48637114]
[1726911062555,0.000825,63202.0,63201.0,0.16992114]
[1726911065045,0.000825,63202.0,63201.0,0.58367114]
[1726911066204,0.000825,63202.0,63201.0,0.60024625]
[1726911066422,0.000825,63202.0,63201.0,0.58367114]
[1726911067347,0.000825,63202.0,63201.0,0.60023825]
[1726911067539,0.000825,63202.0,63201.0,0.58367114]
[1726911068236,0.000825,63202.0,63201.0,0.90012114]
[1726911069370,0.000825,63202.0,63201.0,1.37962481]
[1726911069609,0.000825,63202.0,63201.0,0.90012114]
[1726911070057,0.000825,63202.0,63201.0,0.91408314]
[1726911070276,0.000825,63202.0,63201.0,0.91208314]
[1726911070498,0.000825,63202.0,63201.0,0.91108314]
[1726911070718,0.000825,63202.0,63201.0,0.91608314]
[1726911070939,0.000825,63202.0,63201.0,0.92008314]
[1726911072080,0.000825,63202.0,63201.0,0.91108314]
[1726911072516,0.000825,63202.0,63201.0,0.92408314]
[1726911073002,0.000825,63202.0,63201.0,0.92407091]
[1726911080018,0.000825,63202.0,63201.0,0.91012114]
[1726911080245,0.000825,63202.0,63201.0,0.92407091]
[1726911080503,0.000825,63202.0,63201.0,0.91012114]
[1726911080754,0.000825,63202.0,63201.0,0.92407091]
[1726911080997,0.000825,63202.0,63201.0,0.91012114]
[1726911081481,0.000825,63202.0,63201.0,0.92407091]
[1726911082652,0.000825,63202.0,63201.0,0.91012114]
[1726911082898,0.000825,63202.0,63201.0,0.92406855]
[1726911083372,0.000825,63202.0,63201.0,0.91012114]
[1726911083594,0.000825,63202.0,63201.0,0.92406855]
[1726911083831,0.000825,63202.0,63201.0,0.91012114]
[1726911084021,0.000825,63202.0,63201.0,0.92407198]
[1726911084291,0.000825,63202.0,63201.0,0.91012114]
[1726911086762,0.000825,63202.0,63201.0,0.89712114]
[1726911087230,0.000825,63202.0,63201.0,0.90212114]
[1726911087478,0.000825,63202.0,63201.0,0.89712114]
[1726911087950,0.000825,63202.0,63201.0,0.90212114]
[1726911088680,0.000825,63202.0,63201.0,0.90812114]
[1726911089162,0.000825,63202.0,63201.0,1.22457114]
[1726911089437,0.000825,63202.0,63201.0,1.21857114]
[1726911089688,0.000825,63202.0,63201.0,1.22457114]
[1726911108904,0.000825,63202.0,63201.0,1.21857114]
[1726911109633,0.000825,63202.0,63201.0,1.22257114]
[1726911110102,0.000825,63202.0,63201.0,1.21357114]
[1726911110337,0.000825,63202.0,63201.0,1.22257114]
[1726911112461,0.000825,63202.0,63201.0,0.90612114]
[1726911116679,0.000825,63202.0,63201.0,0.90212114]
[1726911117114,0.000825,63202.0,63201.0,0.90912114]
[1726911117824,0.000825,63202.0,63201.0,0.95645856]
[1726911118252,0.000825,63202.0,63201.0,0.95145856]
[1726911118463,0.000825,63202.0,63201.0,0.95945856]
[1726911118906,0.000825,63202.0,63201.0,1.27590856]
[1726911121290,0.000825,63202.0,63201.0,1.22857114]
[1726911121503,0.000825,63202.0,63201.0,1.27590423]
[1726911121933,0.000825,63202.0,63201.0,1.27590323]
[1726911122364,0.000825,63202.0,63201.0,1.22857114]
[1726911122831,0.000825,63202.0,63201.0,1.27590323]
[1726911123555,0.000825,63202.0,63201.0,1.22857114]
[1726911124237,0.000825,63202.0,63201.0,1.29956366]
[1726911124453,0.000825,63202.0,63201.0,1.22857114]
[1726911128499,0.000825,63202.0,63201.0,1.29247884]
[1726911128718,1.626e-05,63202.0,63201.0,1.29247884]
[1726911130176,1.626e-05,63202.0,63201.0,1.24515841]
[1726911130655,1.626e-05,63202.0,63201.0,1.29247665]
[1726911131614,1.626e-05,63202.0,63201.0,1.24515841]
[1726911132101,1.626e-05,63202.0,63201.0,1.29247423]
[1726911132341,1.626e-05,63202.0,63201.0,1.24515637]
[1726911132608,1.626e-05,63202.0,63201.0,1.29247324]
[1726911134008,1.626e-05,63202.0,63201.0,1.24515637]
[1726911135694,1.626e-05,63202.0,63201.0,1.29247363]
[1726911135934,1.626e-05,63202.0,63201.0,1.29247258]
[1726911136162,1.626e-05,63202.0,63201.0,1.24515637]
[1726911136661,1.626e-05,63202.0,63201.0,1.29247169]
[1726911139091,1.626e-05,63202.0,63201.0,0.97602169]
[1726911139321,1.626e-05,63202.0,63201.0,0.83140637]
[1726911140353,1.626e-05,63202.0,63201.0,0.82340637]
[1726911140601,1.626e-05,63202.0,63201.0,0.82240637]
[1726911140850,1.626e-05,63202.0,63201.0,0.82840637]
[1726911141085,1.626e-05,63202.0,63201.0,0.82240637]
[1726911141584,1.626e-05,63202.0,63201.0,0.82940637]
[1726911142277,1.626e-05,63202.0,63201.0,0.82936653]
[1726911142766,1.626e-05,63202.0,63201.0,0.87668185]
[1726911143322,1.626e-05,63202.0,63201.0,0.82936653]
[1726911150961,1.626e-05,63202.0,63201.0,0.51291653]
[1726911151185,1.626e-05,63202.0,63201.0,0.82936653]
[1726911151418,1.626e-05,63202.0,63201.0,0.51291653]
[1726911151677,1.626e-05,63202.0,63201.0,0.5128307]
[1726911152135,1.626e-05,63202.0,63201.0,0.8292807]
[1726911153877,1.626e-05,63202.0,63201.0,0.8222807]
[1726911154095,1.626e-05,63202.0,63201.0,0.8162807]
[1726911155027,1.626e-05,63202.0,63201.0,0.8212807]
[1726911155028,1.626e-05,63202.0,63201.0,0.80982114]
[1726911155252,0.09777486,63208.0,63205.0,0.158212]
[1726911155731,0.09777486,63208.0,63206.0,0.00681161]
[1726911156706,0.09877486,63208.0,63206.0,0.00681161]
[1726911156943,0.09777486,63208.0,63206.0,0.00681161]
[1726911157179,0.09877486,63208.0,63206.0,0.00681161]
[1726911158847,0.09877486,63208.0,63206.0,0.158211]
[1726911159072,0.09877486,63208.0,63207.0,0.00681122]
[1726911159997,0.09777486,63208.0,63207.0,0.00681122]
[1726911160241,0.001,63208.0,63207.0,0.00681122]
[1726911161379,0.884637,63208.0,63207.0,0.00681122]
[1726911161610,0.25082,63203.0,63202.0,0.23734365]
[1726911162118,0.25082,63203.0,63201.0,0.00165]
[1726911162825,0.158217,63205.0,63201.0,0.00165]
[1726911163058,0.158214,63206.0,63202.0,0.158222]
[1726911163328,0.15821,63207.0,63203.0,0.15822]
[1726911164030,0.316413,63209.0,63202.0,0.316445]
[1726911164031,0.158206,63209.0,63202.0,0.316445]
[1726911164276,0.392201,63211.0,63202.0,0.316445]
[1726911164277,0.003,63205.0,63204.0,0.474651]
[1726911164515,0.001,63205.0,63204.0,0.474651]
[1726911164752,0.001,63207.0,63206.0,0.15821]
[1726911164986,0.001,63207.0,63204.0,0.316434]
[1726911164987,0.001,63207.0,63204.0,0.474649]
[1726911165462,0.001,63207.0,63205.0,0.158214]
[1726911166705,0.001,63207.0,63206.0,0.00681261]
[1726911166943,0.001,63207.0,63206.0,0.16502461]
[1726911167661,0.002,63207.0,63206.0,0.16502461]
[1726911167892,0.001,63207.0,63206.0,0.16502461]
[1726911168124,0.001,63207.0,63206.0,0.16602461]
[1726911168352,0.002,63207.0,63206.0,0.16602461]
[1726911169358,0.001,63207.0,63206.0,0.16502461]
[1726911169847,0.003,63207.0,63206.0,0.16502461]
[1726911170580,0.001,63207.0,63206.0,0.16502461]
[1726911170819,0.003,63207.0,63206.0,0.16502461]
[1726911171108,0.158203,63210.0,63206.0,0.16502461]
[1726911171365,0.0758,63211.0,63206.0,0.16502461]
[1726911171366,0.158206,63209.0,63206.0,0.00681261]
[1726911171592,0.001,63207.0,63206.0,0.16502461]
[1726911171818,0.158203,63210.0,63206.0,0.158212]
[1726911172051,0.158203,63210.0,63206.0,0.16502461]
[1726911173115,0.160203,63210.0,63206.0,0.16502461]
[1726911173323,0.160203,63210.0,63206.0,0.16602461]
[1726911173745,0.160203,63210.0,63206.0,0.16502461]
[1726911174177,0.161203,63210.0,63206.0,0.16502461]
[1726911174792,0.003,63210.0,63207.0,0.158209]
[1726911175018,0.003,63210.0,63208.0,0.158207]
[1726911175254,0.003,63210.0,63208.0,0.16501452]
[1726911175512,0.003,63210.0,63209.0,0.158205]
[1726911175723,0.003,63210.0,63209.0,0.16501214]
[1726911175936,0.001,63210.0,63209.0,0.16501214]
[1726911176152,0.003,63210.0,63209.0,0.16501214]
[1726911176365,0.002,63210.0,63209.0,0.16501214]
[1726911176801,0.005,63210.0,63209.0,0.16501214]
[1726911177289,0.004,63210.0,63209.0,0.16501214]
[1726911177751,0.005825,63210.0,63209.0,0.16501214]
[1726911179340,0.005825,63210.0,63209.0,0.48142214]
[1726911183208,0.005825,63210.0,63209.0,0.16501214]
[1726911185311,0.005825,63210.0,63209.0,0.48142214]
[1726911191187,0.005825,63210.0,63209.0,0.57982214]
[1726911192052,0.001825,63210.0,63209.0,0.57982214]
[1726911192588,0.000825,63210.0,63209.0,0.57982214]
[1726911192832,0.000825,63210.0,63209.0,0.58082214]
[1726911193093,0.000825,63210.0,63209.0,0.58182214]
[1726911193318,0.000825,63210.0,63209.0,0.58082214]
[1726911193547,0.000825,63210.0,63209.0,0.58282214]
[1726911199000,0.000825,63210.0,63209.0,0.58182214]
[1726911199229,0.002825,63210.0,63209.0,0.57982214]
[1726911199462,0.001825,63210.0,63209.0,0.57982214]
[1726911199925,0.000825,63210.0,63209.0,0.26341214]
[1726911200463,0.000825,63210.0,63209.0,0.26441214]
[1726911202323,0.000825,63210.0,63209.0,0.16601214]
[1726911219248,0.000825,63210.0,63209.0,0.00780714]
[1726911221498,0.159027,63210.0,63209.0,0.00780714]
[1726911222152,0.159027,63210.0,63209.0,0.001]
[1726911223196,0.159027,63210.0,63209.0,0.02433402]
[1726911223412,0.000825,63210.0,63209.0,0.02433402]
[1726911225205,0.159027,63210.0,63209.0,0.02433402]
[1726911225439,0.159027,63210.0,63209.0,0.00780422]
[1726911225665,0.159027,63210.0,63209.0,0.001]
[1726911226148,0.000825,63210.0,63209.0,0.001]
[1726911226623,0.000825,63210.0,63209.0,0.0078057]
[1726911227356,0.159027,63210.0,63209.0,0.0078057]
[1726911228052,0.159027,63210.0,63209.0,0.001]
[1726911228531,0.159027,63210.0,63209.0,0.0078057]
[1726911229282,0.159027,63210.0,63209.0,0.0068057]
[1726911229529,0.162027,63210.0,63209.0,0.0068057]
[1726911236177,0.161027,63210.0,63209.0,0.0068057]
[1726911236387,0.162027,63210.0,63209.0,0.0068057]
[1726911237046,0.160027,63210.0,63209.0,0.0068057]
[1726911237257,0.159027,63210.0,63209.0,0.0068057]
[1726911237474,0.160027,63210.0,63209.0,0.0068057]
[1726911237687,0.159027,63210.0,63209.0,0.0068057]
[1726911238102,0.159027,63210.0,63209.0,0.0078057]
[1726911238768,0.159027,63210.0,63209.0,0.0098057]
[1726911241829,0.61760949,63210.0,63209.0,0.0098057]
[1726911242092,0.886537,63210.0,63209.0,0.0098057]
[1726911242315,0.886537,63210.0,63209.0,0.003]
[1726911242518,0.886537,63210.0,63209.0,0.00980274]
[1726911244052,0.886537,63210.0,63209.0,0.003]
[1726911244514,0.886537,63210.0,63209.0,0.002]
[1726911244739,0.474615,63209.0,63208.0,0.00165]
[1726911247171,0.791025,63209.0,63208.0,0.00165]
[1726911247943,0.792025,63209.0,63208.0,0.00165]
[1726911248248,1.59156616,63209.0,63208.0,0.00165]
[1726911248250,1.59154248,63209.0,63208.0,0.00165]
[1726911248489,1.61730491,63209.0,63208.0,0.00165]
[1726911248967,1.61630491,63209.0,63208.0,0.00165]
[1726911249206,1.61530491,63209.0,63208.0,0.00265]
[1726911250290,1.54408867,63209.0,63208.0,0.00265]
[1726911250987,1.54408867,63209.0,63208.0,0.00165]
[1726911250988,1.54308867,63209.0,63208.0,0.00165]
[1726911251236,1.54408867,63209.0,63208.0,0.00265]
[1726911251467,1.54508867,63209.0,63208.0,0.00365]
[1726911252159,1.54308867,63209.0,63208.0,0.00165]
[1726911252418,1.86049867,63209.0,63208.0,0.00265]
[1726911252631,1.86149867,63209.0,63208.0,0.00365]
[1726911253306,1.95634664,63209.0,63208.0,0.00365]
[1726911253765,1.95834664,63209.0,63208.0,0.00365]
[1726911253998,1.95834664,63209.0,63208.0,0.00265]
[1726911253999,1.95734664,63209.0,63208.0,0.00265]
[1726911254223,1.95834664,63209.0,63208.0,0.00365]
[1726911254504,1.42407,63199.0,63198.0,0.00165]
[1726911254755,1.80482367,63199.0,63198.0,0.00165]
[1726911255015,1.87595706,63199.0,63198.0,0.00165]
[1726911255240,1.85422829,63199.0,63198.0,0.00165]
[1726911255723,1.85622829,63199.0,63198.0,0.00365]
[1726911255967,1.90125557,63199.0,63198.0,0.00365]
[1726911256233,1.85385095,63199.0,63198.0,0.00365]
[1726911257189,2.00281296,63199.0,63198.0,0.00365]
[1726911257408,2.02653475,63199.0,63198.0,0.00365]
[1726911258119,2.02653475,63199.0,63198.0,0.00165]
[1726911258120,1.92975095,63199.0,63198.0,0.00165]
[1726911258558,1.93375095,63199.0,63198.0,0.00365]
[1726911259023,1.92975095,63199.0,63198.0,0.00165]
[1726911259256,2.02442965,63199.0,63198.0,0.00165]
[1726911259480,2.02542965,63199.0,63198.0,0.00265]
[1726911259931,2.18851523,63199.0,63198.0,0.00265]
[1726911260362,2.09383653,63199.0,63198.0,0.00265]
[1726911260785,2.09466153,63199.0,63198.0,0.00265]
[1726911261217,2.17962867,63199.0,63198.0,0.00265]
[1726911261419,2.10866153,63199.0,63198.0,0.00265]
[1726911261649,1.97151497,63199.0,63198.0,0.00265]
[1726911262297,1.90054867,63199.0,63198.0,0.00265]
[1726911263165,1.94783928,63199.0,63198.0,0.00265]
[1726911266419,1.90054867,63199.0,63198.0,0.00265]
[1726911267965,1.90688667,63199.0,63198.0,0.00265]
[1726911268640,2.05977398,63199.0,63198.0,0.00265]
[1726911269098,2.06253042,63199.0,63198.0,0.00265]
[1726911272114,1.90964311,63199.0,63198.0,0.00265]
[1726911279994,1.90764311,63199.0,63198.0,0.00265]
[1726911280213,1.93445429,63199.0,63198.0,0.00265]
[1726911281130,1.91945429,63199.0,63198.0,0.00165]
[1726911281598,1.93345429,63199.0,63198.0,0.00265]
[1726911281793,1.91945429,63199.0,63198.0,0.00165]
[1726911282244,2.09553987,63199.0,63198.0,0.00265]
[1726911282640,2.10753987,63199.0,63198.0,0.00365]
[1726911283142,2.09553987,63199.0,63198.0,0.00265]
[1726911283350,2.10753987,63199.0,63198.0,0.00365]
[1726911285567,2.15481477,63199.0,63198.0,0.00365]
[1726911285801,2.15484497,63199.0,63198.0,0.00365]
[1726911287338,2.10753987,63199.0,63198.0,0.00365]
[1726911289288,2.17849752,63199.0,63198.0,0.00365]
[1726911290169,2.10753987,63199.0,63198.0,0.00365]
[1726911291442,2.20215007,63199.0,63198.0,0.00365]
[1726911292303,2.10753987,63199.0,63198.0,0.00365]
[1726911293628,2.22600839,63199.0,63198.0,0.00365]
[1726911294301,2.10753987,63199.0,63198.0,0.00365]
[1726911297738,1.94445429,63199.0,63198.0,0.00365]
[1726911299378,1.91208974,63199.0,63198.0,0.00365]
[1726911299852,1.9093333,63199.0,63198.0,0.00365]
[1726911300329,1.76709785,63199.0,63198.0,0.00365]
[1726911300845,1.90957999,63199.0,63198.0,0.00365]
[1726911301542,1.89657999,63199.0,63198.0,0.00265]
[1726911301753,1.89757999,63199.0,63198.0,0.00265]
[1726911302203,1.75309785,63199.0,63198.0,0.00265]
[1726911302417,1.89557999,63199.0,63198.0,0.00265]
[1726911302661,1.75509785,63199.0,63198.0,0.00265]
[1726911302894,1.89757999,63199.0,63198.0,0.00265]
[1726911303123,1.90857999,63199.0,63198.0,0.00365]
[1726911303780,1.90860136,63199.0,63198.0,0.00365]
[1726911305148,1.76609785,63199.0,63198.0,0.00365]
[1726911305582,1.90860136,63199.0,63198.0,0.00365]
[1726911305795,1.76609785,63199.0,63198.0,0.00365]
[1726911306225,1.90860136,63199.0,63198.0,0.00365]
[1726911306643,1.76609785,63199.0,63198.0,0.00365]
[1726911307952,1.44963785,63199.0,63198.0,0.00365]
[1726911308613,0.79371785,63199.0,63198.0,0.10215]
[1726911308835,0.74305392,63199.0,63198.0,0.10215]
[1726911309097,0.71930721,63199.0,63198.0,0.10790226]
[1726911309315,0.04963618,63199.0,63198.0,0.10790226]
[1726911309559,0.03863618,63199.0,63198.0,0.10690226]
[1726911310001,0.04963618,63199.0,63198.0,0.10790226]
[1726911310216,0.04963618,63199.0,63198.0,0.10215]
[1726911310488,0.20786618,63199.0,63198.0,0.10790134]
[1726911311141,0.18386618,63199.0,63198.0,0.10590134]
[1726911311609,0.20286618,63199.0,63198.0,0.10790134]
[1726911311840,0.04463618,63199.0,63198.0,0.10790134]
[1726911312084,0.000825,63199.0,63198.0,0.10590134]
[1726911312574,0.005825,63199.0,63198.0,0.10590134]
[1726911313048,0.009825,63199.0,63198.0,0.10590134]
[1726911313490,0.168055,63199.0,63198.0,0.10590134]
[1726911316294,0.009825,63199.0,63198.0,0.10590134]
[1726911316978,0.168055,63199.0,63198.0,0.10590134]
[1726911318068,0.009825,63199.0,63198.0,0.10590134]
[1726911318492,0.484515,63199.0,63198.0,0.10590134]
[1726911318698,0.168055,63199.0,63198.0,0.10590134]
[1726911321592,0.168055,63199.0,63198.0,0.10015]
[1726911322019,0.168055,63199.0,63198.0,0.10587248]
[1726911325327,0.009825,63199.0,63198.0,0.10587248]
[1726911327357,0.005825,63199.0,63198.0,0.10587248]
[1726911327566,0.164055,63199.0,63198.0,0.10587248]
[1726911327780,0.008825,63199.0,63198.0,0.10587248]
[1726911327987,0.003825,63199.0,63198.0,0.10587248]
[1726911328201,0.000825,63199.0,63198.0,0.10587248]
[1726911328450,0.005825,63199.0,63198.0,0.10587248]
[1726911328658,0.000825,63199.0,63198.0,0.10587248]
[1726911328865,0.001825,63199.0,63198.0,0.10587248]
[1726911329169,0.005825,63199.0,63198.0,0.10587248]
[1726911330485,0.004825,63199.0,63198.0,0.10587248]
[1726911330964,0.006825,63199.0,63198.0,0.10587248]
[1726911331852,0.006825,63199.0,63198.0,0.10840058]
[1726911332077,0.165055,63199.0,63198.0,0.10840058]
[1726911340101,0.006825,63199.0,63198.0,0.10840058]
[1726911340322,0.165055,63199.0,63198.0,0.10840058]
[1726911353424,0.165055,63199.0,63198.0,0.00990058]
[1726911353876,1.18566193,63199.0,63198.0,0.00990295]
[1726911354087,1.114435,63199.0,63198.0,0.00165]
[1726911354308,1.20925937,63199.0,63198.0,0.00165]
[1726911354522,1.114435,63199.0,63198.0,0.00165]
[1726911355827,1.20942399,63199.0,63198.0,0.00165]
[1726911358098,1.114435,63199.0,63198.0,0.00165]
[1726911358314,1.18565999,63199.0,63198.0,0.00165]
[1726911360021,1.114435,63199.0,63198.0,0.00165]
[1726911360238,1.28064255,63199.0,63198.0,0.00165]
[1726911360452,0.89296399,63199.0,63198.0,0.00165]
[1726911360886,0.797975,63199.0,63198.0,0.00165]
[1726911361116,0.89296399,63199.0,63198.0,0.00165]
[1726911361808,0.797975,63199.0,63198.0,0.00165]
[1726911362255,0.89292589,63199.0,63198.0,0.00165]
[1726911362682,0.797975,63199.0,63198.0,0.00165]
[1726911363133,0.89292589,63199.0,63198.0,0.00165]
[1726911363354,1.03223501,63199.0,63198.0,0.00165]
[1726911363579,1.0625976,63199.0,63198.0,0.00165]
[1726911363823,1.15753768,63199.0,63198.0,0.00165]
[1726911364526,0.95902867,63199.0,63198.0,0.00165]
[1726911364996,1.37642129,63199.0,63198.0,0.00265]
[1726911365469,1.29348867,63199.0,63198.0,0.00365]
[1726911365678,1.37842129,63199.0,63198.0,0.00265]
[1726911365895,1.29348867,63199.0,63198.0,0.00365]
[1726911366140,1.41215417,63199.0,63198.0,0.00365]
[1726911366360,1.48548867,63199.0,63198.0,0.00365]
[1726911366584,1.59058867,63199.0,63198.0,0.00365]
[1726911366826,2.05144761,63199.0,63198.0,0.00365]
[1726911367029,2.18630861,63199.0,63198.0,0.00365]
[1726911367268,2.18626957,63199.0,63198.0,0.00365]
[1726911367496,2.33935515,63199.0,63198.0,0.00265]
[1726911367741,2.32735515,63199.0,63198.0,0.00165]
[1726911367967,2.33735515,63199.0,63198.0,0.00265]
[1726911368202,2.35135515,63199.0,63198.0,0.00365]
[1726911368430,2.32735515,63199.0,63198.0,0.00165]
[1726911368665,2.19243323,63199.0,63198.0,0.00165]
[1726911368915,2.22043323,63199.0,63198.0,0.00365]
[1726911369377,2.20643556,63199.0,63198.0,0.00265]
[1726911369863,2.06413425,63199.0,63198.0,0.00265]
[1726911370095,2.19240417,63199.0,63198.0,0.00165]
[1726911370322,2.02931859,63199.0,63198.0,0.00165]
[1726911370592,1.90104867,63199.0,63198.0,0.00165]
[1726911370841,1.88704867,63199.0,63198.0,0.00165]
[1726911371090,1.89904867,63199.0,63198.0,0.00265]
[1726911371331,1.91304867,63199.0,63198.0,0.00265]
[1726911371534,1.88704867,63199.0,63198.0,0.00165]
[1726911371740,2.05013425,63199.0,63198.0,0.00165]
[1726911371947,2.07613425,63199.0,63198.0,0.00265]
[1726911374499,2.07889048,63199.0,63198.0,0.00265]
[1726911374702,2.36140752,63199.0,63198.0,0.00265]
[1726911374916,2.50368689,63199.0,63198.0,0.00265]
[1726911375147,2.22106769,63199.0,63198.0,0.00265]
[1726911375365,2.36146645,63199.0,63198.0,0.00265]
[1726911375588,2.22106724,63199.0,63198.0,0.00265]
[1726911375823,2.07889048,63199.0,63198.0,0.00265]
[1726911376255,2.39535048,63199.0,63198.0,0.00265]
[1726911376479,2.22106724,63199.0,63198.0,0.00265]
[1726911376689,2.07889048,63199.0,63198.0,0.00265]
[1726911376912,2.39535048,63199.0,63198.0,0.00265]
[1726911377589,2.07889048,63199.0,63198.0,0.00265]
[1726911378036,2.22102925,63199.0,63198.0,0.00265]
[1726911378277,2.53748925,63199.0,63198.0,0.00265]
[1726911378493,2.39535048,63199.0,63198.0,0.00265]
[1726911378933,2.07889048,63199.0,63198.0,0.00265]
[1726911379366,2.39535048,63199.0,63198.0,0.00265]
[1726911383054,2.07889048,63199.0,63198.0,0.00265]
[1726911383711,2.39535048,63199.0,63198.0,0.00265]
[1726911384858,2.07889048,63199.0,63198.0,0.00265]
[1726911385500,2.39535048,63199.0,63198.0,0.00265]
[1726911390988,2.53741173,63199.0,63198.0,0.00265]
[1726911393397,2.6777492,63199.0,63198.0,0.00265]
[1726911393973,2.53744813,63199.0,63198.0,0.00265]
[1726911395684,2.67942129,63199.0,63198.0,0.00265]
[1726911398636,2.67932668,63199.0,63198.0,0.00265]
[1726911400109,2.83929025,63199.0,63198.0,0.00265]
[1726911400392,2.67932668,63199.0,63198.0,0.00265]
[1726911400842,2.83932955,63199.0,63198.0,0.00265]
[1726911401501,2.67932668,63199.0,63198.0,0.00265]
[1726911401731,2.83933651,63199.0,63198.0,0.00265]
[1726911402384,2.83934927,63199.0,63198.0,0.00265]
[1726911402627,2.35980091,63199.0,63198.0,0.00265]
[1726911402880,2.1997811,63199.0,63198.0,0.00265]
[1726911403293,2.5164343,63199.0,63198.0,0.00265]
[1726911403709,2.67644927,63199.0,63198.0,0.00265]
[1726911404141,2.5164343,63199.0,63198.0,0.00265]
[1726911404819,2.67649218,63199.0,63198.0,0.00265]
[1726911405048,2.67951988,63199.0,63198.0,0.00265]
[1726911405277,2.83957649,63199.0,63198.0,0.00265]
[1726911405557,2.67951988,63199.0,63198.0,0.00265]
[1726911407561,2.36305988,63199.0,63198.0,0.00265]
[1726911408395,2.1999743,63199.0,63198.0,0.00265]
[1726911415493,2.1079743,63199.0,63198.0,0.00265]
[1726911426330,2.0238743,63199.0,63198.0,0.00265]
[1726911426741,2.0238743,63199.0,63198.0,0.10175]
[1726911427354,2.0238743,63199.0,63197.0,0.00165]
[1726911427355,1.926092,63198.0,63197.0,0.00165]
[1726911427559,2.49631507,63198.0,63197.0,0.00165]
[1726911428826,2.66862959,63198.0,63197.0,0.00265]
[1726911429246,2.50831507,63198.0,63197.0,0.00265]
[1726911429650,2.71287715,63198.0,63197.0,0.00265]
[1726911430061,2.87319565,63198.0,63197.0,0.00265]
[1726911430302,2.71287715,63198.0,63197.0,0.00265]
[1726911430506,2.87319449,63198.0,63197.0,0.00265]
[1726911430977,2.72687715,63198.0,63197.0,0.00265]
[1726911431190,2.88984109,63198.0,63197.0,0.00265]
[1726911431572,2.72952479,63198.0,63197.0,0.00265]
[1726911432105,2.88984397,63198.0,63197.0,0.00265]
[1726911432581,2.72952479,63198.0,63197.0,0.00265]
[1726911433203,2.88984388,63198.0,63197.0,0.00265]